fUSD/lending_fUSD_20240629
["ID","MTS","AMOUNT","RATE_DAILY","PERIOD"]
[330673135,1719700245054,-500.0,0.00013698,3]
[330673136,1719700245063,-500.0,0.00013698,3]
[330673137,1719700245074,-615.61397963,0.00013698,3]
[330673138,1719700245083,-759.93,0.00013698,3]
[330673139,1719700245093,-500.0,0.00013698,3]
[330673140,1719700245103,-1146.88,0.00013698,3]
[330673141,1719700245114,-500.0,0.00013698,3]
[330673142,1719700245123,-709.3,0.00013698,3]
[330673143,1719700245133,-3340.26,0.00013698,3]
[330673144,1719700245143,-500.0,0.00013698,3]
[330673145,1719700245153,-500.0,0.00013698,3]
[330673146,1719700245162,-1644.3,0.00013698,3]
[330673147,1719700245172,-500.0,0.00013698,3]
[330673148,1719700245181,-1239.02,0.00013698,3]
[330673149,1719700245191,-1414.46,0.00013698,3]
[330673150,1719700245201,-672.37,0.00013698,3]
[330673151,1719700245211,-942.23,0.00013698,3]
[330673152,1719700245220,-500.0,0.00013698,3]
[330673153,1719700245230,-500.0,0.00013698,3]
[330673154,1719700245240,-506.75,0.00013698,3]
[330673155,1719700245250,-500.0,0.00013698,3]
[330673156,1719700245260,-1063.71,0.00013698,3]
[330673157,1719700245270,-500.0,0.00013698,3]
[330673158,1719700245280,-548.17,0.00013698,3]
[330673159,1719700245290,-500.0,0.00013698,3]
[330673160,1719700245299,-2765.26,0.00013698,3]
[330673161,1719700245309,-1719.89,0.00013698,3]
[330673162,1719700245319,-500.0,0.00013698,3]
[330673163,1719700245328,-500.0,0.00013698,3]
[330673164,1719700245338,-500.0,0.00013698,3]
[330673165,1719700245349,-541.02,0.00013698,3]
[330673166,1719700245359,-513.95,0.00013698,3]
[330673167,1719700245369,-556.81,0.00013698,3]
[330673168,1719700245379,-787.05,0.00013698,3]
[330673169,1719700245389,-500.0,0.00013698,3]
[330673170,1719700245398,-500.0,0.00013698,3]
[330673171,1719700245408,-24894.06,0.00013698,3]
[330673172,1719700245418,-684.15,0.00013698,3]
[330673173,1719700245427,-1175.55,0.00013698,3]
[330673174,1719700245437,-500.0,0.00013698,3]
[330673175,1719700245447,-500.0,0.00013698,3]
[330673176,1719700245456,-500.0,0.00013698,3]
[330673177,1719700245466,-500.0,0.00013698,3]
[330673178,1719700245475,-925.48,0.00013698,3]
[330673179,1719700245484,-500.0,0.00013698,3]
[330673180,1719700245500,-500.0,0.00013698,3]
[330673181,1719700245509,-500.0,0.00013698,3]
[330673182,1719700245519,-500.0,0.00013698,3]
[330673183,1719700245528,-1977.84,0.00013698,3]
[330673184,1719700245538,-500.0,0.00013698,3]
[330673185,1719700245548,-1117.44,0.00013698,3]
[330673186,1719700245558,-575.88,0.00013698,3]
[330673187,1719700245567,-1472.29,0.00013698,3]
[330673188,1719700245580,-500.0,0.00013698,3]
[330673189,1719700245590,-561.55,0.00013698,3]
[330673190,1719700245600,-981.79,0.00013698,3]
[330673191,1719700245609,-500.0,0.00013698,3]
[330673192,1719700245619,-857.56,0.00013698,3]
[330673193,1719700245628,-500.0,0.00013698,3]
[330673194,1719700245638,-560.17,0.00013698,3]
[330673195,1719700245647,-559.59,0.00013698,3]
[330673196,1719700245657,-500.0,0.00013698,3]
[330673197,1719700245668,-735.59,0.00013698,3]
[330673198,1719700245678,-500.0,0.00013698,3]
[330673199,1719700245691,-500.0,0.00013698,3]
[330673200,1719700245701,-2501.88,0.00013698,3]
[330673201,1719700245710,-1554.84,0.00013698,3]
[330673202,1719700245721,-500.0,0.00013698,3]
[330673204,1719700245730,-500.0,0.00013698,3]
[330673206,1719700245739,-1414.74,0.00013698,3]
[330673208,1719700245748,-500.0,0.00013698,3]
[330673209,1719700245758,-710.42,0.00013698,3]
[330673210,1719700245768,-853.87,0.00013698,3]
[330673211,1719700245778,-500.0,0.00013698,3]
[330673212,1719700245787,-500.0,0.00013698,3]
[330673213,1719700245797,-500.0,0.00013698,3]
[330673214,1719700245808,-599.69,0.00013698,3]
[330673215,1719700245819,-809.68,0.00013698,3]
[330673216,1719700245828,-500.0,0.00013698,3]
[330673217,1719700245838,-500.0,0.00013698,3]
[330673218,1719700245847,-500.0,0.00013698,3]
[330673219,1719700245857,-500.0,0.00013698,3]
[330673220,1719700245867,-500.0,0.00013698,3]
[330673221,1719700245877,-919.54,0.00013698,3]
[330673222,1719700245886,-500.0,0.00013698,3]
[330673223,1719700245896,-1726.33,0.00013698,3]
[330673224,1719700245905,-500.0,0.00013698,3]
[330673225,1719700245915,-912.24,0.00013698,3]
[330673226,1719700246234,-506.85,0.00013698,3]
[330673227,1719700246251,-500.0,0.00013698,3]
[330673228,1719700246260,-500.0,0.00013698,3]
[330673229,1719700246270,-825.4,0.00013698,3]
[330673230,1719700246279,-500.0,0.00013698,3]
[330673231,1719700246288,-939.44,0.00013698,3]
[330673232,1719700246298,-500.0,0.00013698,3]
[330673233,1719700246307,-4656.48,0.00013698,3]
[330673234,1719700246316,-500.0,0.00013698,3]
[330673235,1719700246325,-500.0,0.00013698,3]
[330673236,1719700246335,-682.78,0.00013698,3]
[330673237,1719700246344,-960.57,0.00013698,3]
[330673238,1719700246353,-500.0,0.00013698,3]
[330673239,1719700246362,-500.0,0.00013698,3]
[330673240,1719700246370,-500.0,0.00013698,3]
[330673241,1719700246380,-933.47,0.00013698,3]
[330673242,1719700246389,-500.0,0.00013698,3]
[330673243,1719700246398,-1408.17,0.00013698,3]
[330673244,1719700246407,-500.0,0.00013698,3]
[330673245,1719700246417,-500.0,0.00013698,2]
[330673246,1719700246426,-500.0,0.00013698,2]
[330673247,1719700246435,-752.26,0.00013698,3]
[330673248,1719700246444,-500.0,0.00013698,3]
[330673249,1719700246453,-500.0,0.00013698,3]
[330673250,1719700246462,-500.0,0.00013698,3]
[330673251,1719700246473,-500.0,0.00013698,3]
[330673252,1719700246483,-933.96,0.00013698,3]
[330673253,1719700246495,-500.0,0.00013698,3]
[330673254,1719700246505,-500.0,0.00013698,3]
[330673255,1719700246514,-741.41,0.00013698,3]
[330673256,1719700246524,-500.0,0.00013698,3]
[330673257,1719700246534,-5085.65,0.00013698,3]
[330673258,1719700246543,-500.0,0.00013698,3]
[330673259,1719700246552,-1456.57,0.00013698,3]
[330673260,1719700246562,-500.0,0.00013698,3]
[330673261,1719700246574,-671.99,0.00013698,3]
[330673262,1719700246583,-500.0,0.00013698,3]
[330673263,1719700246593,-500.0,0.00013698,3]
[330673264,1719700246602,-500.0,0.00013698,3]
[330673265,1719700246611,-508.26,0.00013698,3]
[330673266,1719700246620,-2081.65,0.00013698,3]
[330673267,1719700246630,-500.0,0.00013698,3]
[330673268,1719700246639,-500.0,0.00013698,3]
[330673269,1719700246649,-500.0,0.00013698,3]
[330673270,1719700246658,-787.37,0.00013698,3]
[330673271,1719700246667,-661.09,0.00013698,3]
[330673272,1719700246677,-500.0,0.00013698,3]
[330673273,1719700246685,-633.91,0.00013698,3]
[330673274,1719700246695,-500.0,0.00013698,3]
[330673275,1719700246704,-500.0,0.00013698,3]
[330673276,1719700246714,-500.0,0.00013698,3]
[330673277,1719700246727,-1029.59,0.00013698,3]
[330673278,1719700246737,-500.0,0.00013698,3]
[330673279,1719700246746,-591.63,0.00013698,3]
[330673280,1719700246758,-689.81,0.00013698,3]
[330673281,1719700246767,-500.0,0.00013698,3]
[330673282,1719700246776,-500.0,0.00013698,3]
[330673283,1719700246786,-939.1,0.00013698,3]
[330673284,1719700246795,-695.9,0.00013698,3]
[330673285,1719700246804,-500.0,0.00013698,3]
[330673286,1719700246814,-500.0,0.00013698,3]
[330673287,1719700246823,-500.0,0.00013698,3]
[330673288,1719700246833,-500.0,0.00013698,3]
[330673289,1719700246842,-507.77,0.00013698,3]
[330673290,1719700246851,-1281.25,0.00013698,3]
[330673291,1719700246862,-2842.5,0.00013698,3]
[330673292,1719700246871,-500.0,0.00013698,3]
[330673293,1719700246880,-1831.31,0.00013698,3]
[330673294,1719700246890,-500.0,0.00013698,3]
[330673295,1719700246899,-500.0,0.00013698,3]
[330673296,1719700246908,-500.0,0.00013698,3]
[330673297,1719700246917,-683.24,0.00013698,3]
[330673298,1719700246926,-500.0,0.00013698,3]
[330673299,1719700246935,-1021.36,0.00013698,3]
[330673300,1719700246944,-537.56,0.00013698,3]
[330673301,1719700246953,-1274.83,0.00013698,3]
[330673302,1719700246963,-500.0,0.00013698,3]
[330673303,1719700246975,-1748.7,0.00013698,3]
[330673304,1719700246984,-500.0,0.00013698,2]
[330673305,1719700246994,-853.47,0.00013698,3]
[330673306,1719700247003,-500.0,0.00013698,3]
[330673307,1719700247011,-500.0,0.00013698,3]
[330673308,1719700247021,-3070.22,0.00013698,3]
[330673309,1719700247031,-500.0,0.00013698,3]
[330673310,1719700247041,-500.0,0.00013698,3]
[330673311,1719700247051,-1191.19,0.00013698,3]
[330673312,1719700247060,-500.0,0.00013698,3]
[330673313,1719700247069,-1507.21,0.00013698,3]
[330673314,1719700247079,-575.15,0.00013698,3]
[330673315,1719700247089,-759.54,0.00013698,3]
[330673316,1719700247098,-886.33,0.00013698,3]
[330673317,1719700247107,-1970.87,0.00013698,3]
[330673318,1719700247118,-500.0,0.00013698,3]
[330673319,1719700247127,-542.6,0.00013698,3]
[330673320,1719700247137,-500.0,0.00013698,3]
[330673321,1719700247147,-501.27,0.00013698,3]
[330673322,1719700247156,-500.0,0.00013698,3]
[330673323,1719700247165,-920.09,0.00013698,3]
[330673324,1719700247174,-500.0,0.00013698,3]
[330673325,1719700247183,-500.0,0.00013698,3]
[330673326,1719700247193,-500.0,0.00013698,3]
[330673327,1719700247202,-500.0,0.00013698,3]
[330673328,1719700247212,-683.87,0.00013698,3]
[330673329,1719700247222,-432.62545952,0.00013698,3]
[330673330,1719700247256,-67.37454048,0.00013698,3]
[330673331,1719700247266,-500.0,0.00013698,3]
[330673332,1719700247275,-650.77,0.00013698,3]
[330673333,1719700247284,-1470.7,0.00013698,3]
[330673334,1719700247294,-500.0,0.00013698,3]
[330673335,1719700247303,-1382.2,0.00013698,3]
[330673336,1719700247312,-500.0,0.00013698,3]
[330673337,1719700247322,-500.0,0.00013698,3]
[330673338,1719700247331,-500.0,0.00013698,3]
[330673339,1719700247341,-600.51143428,0.00013698,3]
[330673346,1719700522411,380.37,0.00010821,2]
[330673347,1719700553361,205.0,9.8e-05,2]
[330673348,1719700565518,155.0,0.00010821,2]
[330673349,1719700565951,411.51824924,0.00010821,2]
[330673350,1719700622211,720.96332007,0.00011199,2]
[330673353,1719700650892,517.70837826,0.00010821,2]
[330673354,1719700674540,155.0,0.00011199,2]
[330673355,1719700695337,155.0,0.00011199,2]
[330673356,1719700703865,217.90047204,0.00011199,2]
[330673357,1719700706136,155.0,0.00011199,2]
[330673358,1719700749539,155.0,0.00011199,2]
[330673360,1719700762338,318.04969319,0.00011199,2]
[330673361,1719700767196,155.0,0.00011199,2]
[330673362,1719700797088,155.0,0.00011199,2]
[330673364,1719700797753,155.0,0.00011199,2]
[330673365,1719700813901,269.27286365,0.00011199,2]
[330673366,1719700833819,365.05601346,0.00011199,2]
[330673367,1719700838605,158.25040673,0.00011199,2]
[330673368,1719700847870,235.41524417,0.00011199,2]
[330673369,1719700859788,191.13133498,0.00011199,2]
[330673370,1719700886246,163.61123882,0.00011199,2]
[330673372,1719700898563,1269.59042167,0.00011199,2]
[330673375,1719700926992,366.11090361,0.00011199,2]
[330673376,1719700946708,4086.16909923,0.00011199,2]
[330673377,1719700971743,720.09204165,0.00011199,2]
[330673378,1719701146492,3030.26518604,0.00011199,2]
[330673379,1719701157176,361.35,0.00010662,2]
[330673380,1719701160698,530.19091771,0.00011199,2]
[330673381,1719701173510,3398.22978452,0.00011199,2]
[330673382,1719701303834,364.46359716,0.00011199,2]
[330673383,1719701321866,235.00896897,0.00011199,2]
[330673400,1719701432437,-250.0,0.00012564,2]
[330673401,1719701432448,-131.69396082,0.00012598,2]
[330673402,1719701432460,-868.30603918,0.00012598,2]
[330673403,1719701432469,-203.01826419,0.00012608,2]
[330673404,1719701432482,-46.98173581,0.00012608,2]
[330673405,1719701432491,-169.46,0.00012651,2]
[330673406,1719701432501,-361.35,0.00012926,2]
[330673407,1719701432510,-251.79886656,0.00013128,2]
[330673417,1719701434373,482.87871356,0.00012314,2]
[330673421,1719701438173,-792.31207211,0.00012498,2]
[330673422,1719701438183,-277.46799849,0.00013128,2]
[330673423,1719701438192,-625.50090201,0.00013128,2]
[330673424,1719701438202,-150.0,0.0001337,2]
[330673425,1719701438211,-230.90181828,0.00013398,2]
[330673426,1719701438220,-7475.19427731,0.00013398,2]
[330673427,1719701438233,-16161.87692269,0.00013398,2]
[330673428,1719701438243,-4829.8355,0.00013398,2]
[330673429,1719701438252,-8427.99524981,0.00013398,2]
[330673430,1719701438264,-7930.2127496,0.00013398,2]
[330673431,1719701438275,-457.72973876,0.00013398,2]
[330673432,1719701438286,-12338.90693721,0.00013398,2]
[330673433,1719701438344,-5376.96082462,0.00013398,2]
[330673434,1719701438354,-948.6865,0.00013398,2]
[330673435,1719701438363,-37036.9169,0.00013398,2]
[330673436,1719701438373,-680.319,0.00013398,2]
[330673437,1719701438382,-2294.4228,0.00013398,2]
[330673438,1719701438392,-230.90181825,0.00013476,2]
[330673439,1719701438403,-384.99357971,0.00013488,2]
[330673440,1719701438412,-499.99,0.00013498,2]
[330673441,1719701438422,-218314.8059,0.00013498,2]
[330673442,1719701438433,-1000.0,0.00013498,2]
[330673443,1719701438443,-600.0,0.000135,4]
[330673444,1719701438454,-230.90181825,0.00013553,2]
[330673445,1719701438466,-1715.45,0.0001357,2]
[330673446,1719701438476,-440.06610721,0.0001358,2]
[330673447,1719701438486,-2068.09148672,0.00013588,2]
[330673448,1719701438496,-1845.13796,0.0001359,2]
[330673449,1719701438506,-174.85556551,0.00013598,2]
[330673450,1719701438516,-5862.68470325,0.00013598,2]
[330673451,1719701438525,-750.64468189,0.00013598,2]
[330673452,1719701438535,-1000.0,0.00013598,2]
[330673453,1719701438544,-19000.0,0.00013598,2]
[330673454,1719701438553,-500.0,0.00013598,2]
[330673455,1719701438563,-100000.0,0.00013598,2]
[330673456,1719701438572,-204.034,0.00013598,2]
[330673457,1719701438582,-3166.2426,0.00013598,2]
[330673458,1719701438591,-33620.9001,0.00013598,2]
[330673459,1719701438601,-7500.0,0.00013598,2]
[330673460,1719701438611,-1300.0,0.000136,4]
[330673461,1719701438621,-750.64468188,0.00013619,2]
[330673462,1719701438631,-230.90181825,0.00013631,2]
[330673463,1719701438640,-750.64468188,0.0001364,2]
[330673464,1719701438650,-1845.13796,0.0001366,2]
[330673465,1719701438660,-327.18536216,0.00013688,2]
[330673466,1719701438670,-744.97,0.00013698,3]
[330673467,1719701438679,-1900.55,0.00013698,3]
[330673468,1719701438689,-1883.06,0.00013698,3]
[330673469,1719701438698,-1599.0,0.00013698,3]
[330673470,1719701438708,-1376.45,0.00013698,3]
[330673471,1719701438717,-1687.28,0.00013698,3]
[330673472,1719701438728,-1410.94,0.00013698,3]
[330673473,1719701438738,-2397.63,0.00013698,3]
[330673474,1719701438748,-4462.46,0.00013698,3]
[330673475,1719701438757,-4873.75,0.00013698,3]
[330673476,1719701438768,-1444.41,0.00013698,3]
[330673477,1719701438777,-500.0,0.00013698,3]
[330673478,1719701438787,-500.0,0.00013698,3]
[330673479,1719701438797,-1992.79,0.00013698,3]
[330673480,1719701438806,-500.0,0.00013698,3]
[330673481,1719701438816,-6339.28,0.00013698,3]
[330673482,1719701438826,-500.0,0.00013698,3]
[330673483,1719701438836,-500.0,0.00013698,3]
[330673484,1719701438845,-594.72,0.00013698,3]
[330673485,1719701438855,-500.0,0.00013698,3]
[330673486,1719701438868,-925.18,0.00013698,3]
[330673487,1719701438877,-743.73,0.00013698,3]
[330673488,1719701438887,-659.01,0.00013698,3]
[330673489,1719701438896,-500.0,0.00013698,3]
[330673490,1719701438907,-500.0,0.00013698,3]
[330673491,1719701438916,-598.19,0.00013698,3]
[330673492,1719701438925,-500.0,0.00013698,3]
[330673493,1719701438937,-1536.32,0.00013698,3]
[330673494,1719701438946,-500.0,0.00013698,3]
[330673495,1719701438956,-500.0,0.00013698,3]
[330673496,1719701438965,-554.5,0.00013698,3]
[330673497,1719701438975,-500.0,0.00013698,3]
[330673498,1719701438984,-500.0,0.00013698,3]
[330673499,1719701438994,-535.05,0.00013698,3]
[330673500,1719701439003,-500.0,0.00013698,3]
[330673501,1719701439013,-500.0,0.00013698,3]
[330673502,1719701439024,-510.50487257,0.00013698,3]
[330673503,1719701439041,-543.70757614,0.00013698,3]
[330673504,1719701439056,-1564.54,0.00013698,3]
[330673505,1719701439066,-500.0,0.00013698,3]
[330673506,1719701439076,-500.0,0.00013698,3]
[330673507,1719701439087,-505.24908145,0.00013698,3]
[330673508,1719701439098,-500.0,0.00013698,3]
[330673509,1719701439108,-522.55,0.00013698,3]
[330673510,1719701439119,-500.0,0.00013698,3]
[330673511,1719701439130,-500.0,0.00013698,3]
[330673512,1719701439141,-500.0,0.00013698,3]
[330673513,1719701439151,-518.48,0.00013698,3]
[330673514,1719701439162,-500.0,0.00013698,3]
[330673515,1719701439172,-500.0,0.00013698,3]
[330673516,1719701439183,-500.0,0.00013698,3]
[330673517,1719701439193,-500.0,0.00013698,3]
[330673518,1719701439204,-500.0,0.00013698,3]
[330673519,1719701439213,-500.0,0.00013698,3]
[330673520,1719701439224,-500.0,0.00013698,3]
[330673521,1719701439234,-500.0,0.00013698,3]
[330673522,1719701439244,-655.64,0.00013698,3]
[330673523,1719701439254,-500.0,0.00013698,3]
[330673524,1719701439264,-500.0,0.00013698,3]
[330673525,1719701439274,-500.0,0.00013698,3]
[330673526,1719701439284,-534.38,0.00013698,3]
[330673527,1719701439294,-525.33,0.00013698,3]
[330673528,1719701439305,-1515.14,0.00013698,3]
[330673529,1719701439315,-500.0,0.00013698,3]
[330673530,1719701439325,-500.0,0.00013698,3]
[330673531,1719701439335,-500.0,0.00013698,3]
[330673532,1719701439346,-500.0,0.00013698,3]
[330673533,1719701439356,-775.94,0.00013698,3]
[330673534,1719701439367,-500.0,0.00013698,3]
[330673535,1719701439378,-500.0,0.00013698,3]
[330673536,1719701439388,-1187.39,0.00013698,3]
[330673537,1719701439400,-500.0,0.00013698,3]
[330673538,1719701439410,-500.0,0.00013698,3]
[330673539,1719701439420,-500.0,0.00013698,3]
[330673540,1719701439430,-500.0,0.00013698,3]
[330673541,1719701439440,-574.71,0.00013698,3]
[330673542,1719701439452,-500.0,0.00013698,3]
[330673543,1719701439463,-500.0,0.00013698,3]
[330673544,1719701439473,-1239.86,0.00013698,3]
[330673545,1719701439483,-500.0,0.00013698,3]
[330673546,1719701439494,-500.0,0.00013698,3]
[330673547,1719701439504,-500.0,0.00013698,3]
[330673548,1719701439514,-500.0,0.00013698,3]
[330673549,1719701439524,-500.0,0.00013698,3]
[330673550,1719701439535,-500.0,0.00013698,3]
[330673551,1719701439545,-500.0,0.00013698,3]
[330673552,1719701439561,-680.82,0.00013698,3]
[330673553,1719701439572,-538.16,0.00013698,3]
[330673554,1719701439584,-500.0,0.00013698,3]
[330673555,1719701439594,-500.0,0.00013698,3]
[330673556,1719701439605,-500.0,0.00013698,3]
[330673557,1719701439615,-500.0,0.00013698,3]
[330673558,1719701439626,-500.0,0.00013698,3]
[330673559,1719701439637,-1578.34,0.00013698,3]
[330673560,1719701439648,-704.94,0.00013698,3]
[330673561,1719701439659,-500.0,0.00013698,3]
[330673562,1719701439670,-500.0,0.00013698,3]
[330673563,1719701439681,-500.0,0.00013698,3]
[330673564,1719701439692,-500.0,0.00013698,3]
[330673565,1719701439702,-500.0,0.00013698,3]
[330673566,1719701439713,-500.0,0.00013698,3]
[330673567,1719701439724,-500.0,0.00013698,3]
[330673568,1719701439735,-500.0,0.00013698,3]
[330673569,1719701439747,-720.92,0.00013698,3]
[330673570,1719701439758,-1687.5,0.00013698,3]
[330673571,1719701439769,-15.79594287,0.00013698,3]
[330673572,1719701439792,-484.20405713,0.00013698,3]
[330673573,1719701439803,-423.66795315,0.00013698,2]
[330673574,1719701439815,-76.33204685,0.00013698,2]
[330673575,1719701439826,-257.47467377,0.00013698,3]
[330673576,1719701439872,-242.52532623,0.00013698,3]
[330673577,1719701439883,-500.0,0.00013698,3]
[330673578,1719701439893,-500.0,0.00013698,3]
[330673579,1719701439906,-500.0,0.00013698,3]
[330673580,1719701439917,-500.0,0.00013698,3]
[330673581,1719701439928,-551.19,0.00013698,3]
[330673582,1719701439942,-500.0,0.00013698,3]
[330673583,1719701439954,-500.0,0.00013698,3]
[330673584,1719701439964,-500.0,0.00013698,3]
[330673585,1719701439976,-1019.39,0.00013698,3]
[330673586,1719701439987,-500.0,0.00013698,3]
[330673587,1719701439998,-566.98,0.00013698,3]
[330673588,1719701440010,-500.0,0.00013698,3]
[330673589,1719701440021,-500.0,0.00013698,3]
[330673590,1719701440032,-519.99,0.00013698,3]
[330673591,1719701440043,-500.0,0.00013698,3]
[330673592,1719701440059,-500.0,0.00013698,3]
[330673593,1719701440069,-500.0,0.00013698,3]
[330673594,1719701440080,-500.0,0.00013698,3]
[330673595,1719701440091,-500.0,0.00013698,3]
[330673596,1719701440102,-500.0,0.00013698,3]
[330673597,1719701440114,-500.0,0.00013698,3]
[330673598,1719701440124,-500.0,0.00013698,3]
[330673599,1719701440134,-641.28,0.00013698,3]
[330673600,1719701440145,-500.0,0.00013698,3]
[330673601,1719701440155,-500.0,0.00013698,3]
[330673602,1719701440166,-500.0,0.00013698,3]
[330673603,1719701440176,-500.0,0.00013698,3]
[330673604,1719701440188,-536.27,0.00013698,3]
[330673605,1719701440198,-500.0,0.00013698,3]
[330673606,1719701440209,-500.0,0.00013698,3]
[330673607,1719701440220,-640.62,0.00013698,3]
[330673608,1719701440230,-675.92,0.00013698,3]
[330673609,1719701440240,-724.58,0.00013698,3]
[330673610,1719701440251,-500.0,0.00013698,3]
[330673611,1719701440261,-500.0,0.00013698,3]
[330673612,1719701440271,-500.0,0.00013698,3]
[330673613,1719701440282,-500.0,0.00013698,3]
[330673614,1719701440293,-515.16,0.00013698,3]
[330673615,1719701440303,-745.83,0.00013698,3]
[330673616,1719701440313,-500.0,0.00013698,2]
[330673617,1719701440324,-227.77082062,0.00013698,2]
[330673618,1719701440334,-816.7,0.00013698,3]
[330673619,1719701440345,-500.0,0.00013698,3]
[330673620,1719701440355,-582.89,0.00013698,3]
[330673621,1719701440366,-645.54,0.00013698,3]
[330673622,1719701440376,-613.29,0.00013698,3]
[330673623,1719701440387,-1094.33,0.00013698,3]
[330673624,1719701440397,-500.0,0.00013698,3]
[330673625,1719701440408,-500.0,0.00013698,3]
[330673626,1719701440418,-500.0,0.00013698,3]
[330673627,1719701440428,-229.22803473,0.00013698,3]
[330673628,1719701440438,-500.0,0.00013698,3]
[330673629,1719701440449,-1055.76,0.00013698,3]
[330673630,1719701440461,-643.36,0.00013698,3]
[330673631,1719701440471,-500.0,0.00013698,3]
[330673632,1719701440482,-727.46,0.00013698,3]
[330673633,1719701440492,-669.95,0.00013698,3]
[330673634,1719701440503,-500.0,0.00013698,3]
[330673635,1719701440513,-596.93664718,0.00013698,3]
[330673636,1719701440524,-500.0,0.00013698,3]
[330673637,1719701440534,-500.0,0.00013698,3]
[330673638,1719701440545,-543.85,0.00013698,3]
[330673639,1719701440555,-500.0,0.00013698,3]
[330673640,1719701440569,-791.01,0.00013698,3]
[330673641,1719701440579,-196.24886245,0.00013698,3]
[330673642,1719701440591,-500.0,0.00013698,3]
[330673643,1719701440602,-617.38,0.00013698,3]
[330673644,1719701440613,-453.04119418,0.00013698,3]
[330673645,1719701440624,-500.0,0.00013698,3]
[330673646,1719701440634,-597.80537939,0.00013698,3]
[330673647,1719701440644,-803.66,0.00013698,3]
[330673648,1719701440655,-603.02,0.00013698,3]
[330673649,1719701440665,-500.0,0.00013698,3]
[330673650,1719701440675,-500.0,0.00013698,3]
[330673651,1719701440687,-598.96,0.00013698,3]
[330673652,1719701440697,-500.0,0.00013698,3]
[330673653,1719701440709,-853.28,0.00013698,3]
[330673654,1719701440721,-500.0,0.00013698,3]
[330673656,1719701440732,-500.0,0.00013698,3]
[330673658,1719701440742,-500.0,0.00013698,3]
[330673660,1719701440752,-730.04,0.00013698,3]
[330673662,1719701440762,-645.94,0.00013698,3]
[330673664,1719701440772,-720.05,0.00013698,3]
[330673666,1719701440782,-888.6,0.00013698,3]
[330673668,1719701440792,-500.0,0.00013698,3]
[330673670,1719701440803,-500.0,0.00013698,3]
[330673672,1719701440813,-905.41,0.00013698,3]
[330673674,1719701440823,-500.0,0.00013698,3]
[330673676,1719701440833,-500.0,0.00013698,3]
[330673678,1719701440843,-500.0,0.00013698,3]
[330673680,1719701440853,-1011.97,0.00013698,3]
[330673682,1719701440867,-500.0,0.00013698,3]
[330673685,1719701440878,-500.0,0.00013698,3]
[330673687,1719701440887,-500.0,0.00013698,3]
[330673688,1719701440899,-644.53,0.00013698,3]
[330673690,1719701440909,-842.11323706,0.00013698,3]
[330673693,1719701440927,-302.07676294,0.00013698,3]
[330673696,1719701440943,-227.04334753,0.00013698,3]
[330673700,1719701440956,-272.95665247,0.00013698,3]
[330673703,1719701440966,-500.0,0.00013698,3]
[330673707,1719701440977,-514.73,0.00013698,3]
[330673709,1719701440988,-500.0,0.00013698,3]